fUSD/lending_fUSD_20250904
["ID","MTS","AMOUNT","RATE_DAILY","PERIOD"]
[383587690,1757011847681,-400.0,0.00024088,2]
[383587692,1757011847694,-400.0,0.00024088,2]
[383587694,1757011847704,-400.0,0.00024088,2]
[383587696,1757011847715,-288.6,0.00024088,2]
[383587698,1757011847725,-298.7,0.00024088,2]
[383587700,1757011847735,-538.26,0.00024088,2]
[383587702,1757011847744,-400.0,0.00024088,2]
[383587704,1757011847754,-400.0,0.00024088,2]
[383587706,1757011847764,-400.0,0.00024088,2]
[383587708,1757011847773,-400.0,0.00024088,2]
[383587710,1757011847784,-400.0,0.00024088,2]
[383587712,1757011847795,-400.0,0.00024088,2]
[383587714,1757011847804,-400.0,0.00024088,2]
[383587716,1757011847813,-400.0,0.00024088,2]
[383587718,1757011847823,-400.0,0.00024088,2]
[383587720,1757011847832,-400.0,0.00024088,2]
[383587722,1757011847842,-400.0,0.00024088,2]
[383587724,1757011847852,-405.74,0.00024088,2]
[383587726,1757011847862,-400.0,0.00024088,2]
[383587728,1757011847872,-167.68,0.00024088,2]
[383587730,1757011847881,-400.0,0.00024088,2]
[383587732,1757011847891,-464.99,0.00024088,2]
[383587734,1757011847900,-159.54,0.00024088,2]
[383587736,1757011847910,-400.0,0.00024088,2]
[383587738,1757011847919,-400.0,0.00024088,2]
[383587740,1757011847929,-400.0,0.00024088,2]
[383587742,1757011847939,-400.0,0.00024088,2]
[383587744,1757011847948,-400.0,0.00024088,2]
[383587746,1757011847958,-400.0,0.00024088,2]
[383587748,1757011847968,-161.63,0.00024088,2]
[383587750,1757011847978,-400.0,0.00024088,2]
[383587752,1757011847988,-400.0,0.00024088,2]
[383587754,1757011847998,-515.03,0.00024088,2]
[383587757,1757011848009,-256.7,0.00024088,2]
[383587759,1757011848019,-525.39,0.00024088,2]
[383587761,1757011848030,-400.0,0.00024088,2]
[383587763,1757011848040,-400.0,0.00024088,2]
[383587765,1757011848050,-332.83,0.00024088,2]
[383587767,1757011848059,-400.0,0.00024088,2]
[383587769,1757011848070,-400.0,0.00024088,2]
[383587771,1757011848080,-400.0,0.00024088,2]
[383587773,1757011848089,-400.0,0.00024088,2]
[383587775,1757011848099,-400.0,0.00024088,2]
[383587777,1757011848109,-400.0,0.00024088,2]
[383587779,1757011848120,-400.0,0.00024088,2]
[383587781,1757011848130,-400.0,0.00024088,2]
[383587783,1757011848140,-400.0,0.00024088,2]
[383587785,1757011848150,-400.0,0.00024088,2]
[383587787,1757011848160,-400.0,0.00024088,2]
[383587789,1757011848170,-400.0,0.00024088,2]
[383587791,1757011848180,-400.0,0.00024088,2]
[383587793,1757011848190,-400.0,0.00024088,2]
[383587795,1757011848200,-400.0,0.00024088,2]
[383587797,1757011848210,-194.82,0.00024088,2]
[383587800,1757011848219,-360.4,0.00024088,2]
[383587802,1757011848230,-604.82,0.00024088,2]
[383587804,1757011848239,-400.0,0.00024088,2]
[383587806,1757011848248,-400.0,0.00024088,2]
[383587808,1757011848258,-351.41,0.00024088,2]
[383587810,1757011848268,-400.0,0.00024088,2]
[383587812,1757011848277,-440.2,0.00024088,2]
[383587814,1757011848287,-400.0,0.00024088,2]
[383587816,1757011848296,-477.68,0.00024088,2]
[383587818,1757011848307,-400.0,0.00024088,2]
[383587820,1757011848317,-400.0,0.00024088,2]
[383587822,1757011848326,-383.54,0.00024088,2]
[383587824,1757011848336,-400.0,0.00024088,2]
[383587826,1757011848346,-400.0,0.00024088,2]
[383587828,1757011848356,-400.0,0.00024088,2]
[383587830,1757011848366,-400.0,0.00024088,2]
[383587832,1757011848376,-400.0,0.00024088,2]
[383587834,1757011848387,-403.26,0.00024088,2]
[383587836,1757011848397,-333.56,0.00024088,2]
[383587838,1757011848407,-400.0,0.00024088,2]
[383587840,1757011848417,-400.0,0.00024088,2]
[383587842,1757011848427,-539.53,0.00024088,2]
[383587844,1757011848438,-361.44,0.00024088,2]
[383587846,1757011848448,-304.04,0.00024088,2]
[383587848,1757011848459,-400.54,0.00024088,2]
[383587850,1757011848470,-224.52,0.00024088,2]
[383587852,1757011848480,-400.0,0.00024088,2]
[383587854,1757011848490,-400.0,0.00024088,2]
[383587856,1757011848500,-170.42,0.00024088,2]
[383587859,1757011848511,-400.0,0.00024088,2]
[383587861,1757011848522,-400.0,0.00024088,2]
[383587863,1757011848535,-400.0,0.00024088,2]
[383587865,1757011848545,-400.0,0.00024088,2]
[383587867,1757011848556,-316.38,0.00024088,2]
[383587869,1757011848566,-400.0,0.00024088,2]
[383587871,1757011848576,-400.0,0.00024088,2]
[383587873,1757011848587,-400.0,0.00024088,2]
[383587875,1757011848598,-400.0,0.00024088,2]
[383587877,1757011848608,-400.0,0.00024088,2]
[383587879,1757011848619,-400.0,0.00024088,2]
[383587881,1757011848629,-262.2,0.00024088,2]
[383587884,1757011848640,-400.0,0.00024088,2]
[383587886,1757011848650,-400.0,0.00024088,2]
[383587888,1757011848662,-400.0,0.00024088,2]
[383587890,1757011848673,-400.0,0.00024088,2]
[383587892,1757011848684,-400.0,0.00024088,2]
[383587894,1757011848698,-400.0,0.00024088,2]
[383587896,1757011848710,-400.0,0.00024088,2]
[383587898,1757011848720,-400.0,0.00024088,2]
[383587900,1757011848731,-400.0,0.00024088,2]
[383587902,1757011848742,-400.0,0.00024088,2]
[383587904,1757011848753,-717.27,0.00024088,2]
[383587907,1757011848764,-400.0,0.00024088,2]
[383587929,1757011848969,-370.52,0.00024088,2]
[383587931,1757011848983,-320.24,0.00024088,2]
[383587933,1757011848994,-325.38,0.00024088,2]
[383587935,1757011849003,-400.0,0.00024088,2]
[383587937,1757011849013,-273.42,0.00024088,2]
[383587939,1757011849023,-306.8,0.00024088,2]
[383587942,1757011849035,-239.6,0.00024088,2]
[383587944,1757011849045,-400.0,0.00024088,2]
[383587946,1757011849055,-400.0,0.00024088,2]
[383587948,1757011849065,-202.98,0.00024088,2]
[383587950,1757011849075,-184.24,0.00024088,2]
[383587952,1757011849085,-400.0,0.00024088,2]
[383587954,1757011849095,-400.0,0.00024088,2]
[383587956,1757011849105,-400.0,0.00024088,2]
[383587958,1757011849115,-400.0,0.00024088,2]
[383587960,1757011849125,-153.46,0.00024088,2]
[383587962,1757011849135,-201.12,0.00024088,2]
[383587964,1757011849144,-400.0,0.00024088,2]
[383587966,1757011849153,-541.15,0.00024088,2]
[383587968,1757011849163,-222.7,0.00024088,2]
[383587970,1757011849173,-362.32722635,0.00024088,2]
[383587972,1757011849182,-400.0,0.00024088,2]
[383587974,1757011849192,-542.42,0.00024088,2]
[383587975,1757011849202,-400.0,0.00024088,2]
[383587976,1757011849211,-400.0,0.00024088,2]
[383587977,1757011849221,-400.0,0.00024088,2]
[383587978,1757011849231,-400.0,0.00024088,2]
[383587979,1757011849242,-400.0,0.00024088,2]
[383587980,1757011849252,-400.0,0.00024088,2]
[383587981,1757011849261,-404.32,0.00024088,2]
[383587982,1757011849271,-400.0,0.00024088,2]
[383587983,1757011849282,-456.02,0.00024088,2]
[383587984,1757011849291,-463.25,0.00024088,2]
[383587985,1757011849301,-400.0,0.00024088,2]
[383587986,1757011849311,-400.0,0.00024088,2]
[383587988,1757011849321,-400.0,0.00024088,2]
[383587989,1757011849331,-400.0,0.00024088,2]
[383587990,1757011849341,-400.0,0.00024088,2]
[383587991,1757011849351,-400.0,0.00024088,2]
[383587992,1757011849361,-400.0,0.00024088,2]
[383587993,1757011849371,-532.42,0.00024088,2]
[383587994,1757011849381,-417.6,0.00024088,2]
[383587995,1757011849391,-400.0,0.00024088,2]
[383587996,1757011849401,-400.0,0.00024088,2]
[383587997,1757011849410,-232.9,0.00024088,2]
[383587998,1757011849419,-400.0,0.00024088,2]
[383587999,1757011849429,-400.0,0.00024088,2]
[383588000,1757011849439,-400.0,0.00024088,2]
[383588001,1757011849448,-198.96,0.00024088,2]
[383588002,1757011849458,-206.25,0.00024088,2]
[383588003,1757011849468,-400.0,0.00024088,2]
[383588004,1757011849479,-400.0,0.00024088,2]
[383588005,1757011849488,-400.0,0.00024088,2]
[383588006,1757011849498,-400.0,0.00024088,2]
[383588007,1757011849509,-403.0755035,0.00024088,2]
[383588008,1757011849518,-400.0,0.00024088,2]
[383588009,1757011849528,-400.0,0.00024088,2]
[383588010,1757011849538,-317.01,0.00024088,2]
[383588011,1757011849548,-291.3,0.00024088,2]
[383588012,1757011849558,-477.58,0.00024088,2]
[383588013,1757011849568,-400.0,0.00024088,2]
[383588014,1757011849579,-400.0,0.00024088,2]
[383588015,1757011849589,-400.0,0.00024088,2]
[383588016,1757011849598,-400.0,0.00024088,2]
[383588017,1757011849609,-536.64,0.00024088,2]
[383588018,1757011849619,-400.0,0.00024088,2]
[383588019,1757011849628,-400.0,0.00024088,2]
[383588020,1757011849639,-400.0,0.00024088,2]
[383588021,1757011849649,-1680.0,0.00024103,2]
[383588022,1757011849659,-500.0,0.00024121,2]
[383588023,1757011849669,-442.85745849,0.00024121,2]
[383588024,1757011849678,-157.05221486,0.0002417,2]
[383588025,1757011849687,-727.11513381,0.00024262,2]
[383588026,1757011849701,-500.0,0.00024292,2]
[383588027,1757011849711,-173.36,0.00024361,2]
[383588028,1757011849720,-400.0,0.00024361,2]
[383588029,1757011849730,-400.0,0.00024361,2]
[383588030,1757011849739,-181.66,0.00024361,2]
[383588031,1757011849749,-401.63,0.00024361,2]
[383588032,1757011849760,-205.87,0.00024361,2]
[383588033,1757011849770,-160.0,0.00024362,3]
[383588034,1757011849780,-500.0,0.00024362,2]
[383588035,1757011849790,-500.0,0.00024362,2]
[383588036,1757011849799,-500.0,0.00024362,2]
[383588037,1757011849809,-317.39,0.00024362,2]
[383588038,1757011849819,-400.0,0.00024362,2]
[383588039,1757011849829,-400.0,0.00024362,2]
[383588040,1757011849839,-400.0,0.00024362,2]
[383588041,1757011849848,-400.0,0.00024362,2]
[383588042,1757011849858,-236.71,0.00024362,2]
[383588043,1757011849869,-400.0,0.00024362,2]
[383588044,1757011849878,-540.08,0.00024362,2]
[383588045,1757011849888,-390.54,0.00024362,2]
[383588046,1757011849898,-400.0,0.00024362,2]
[383588047,1757011849908,-481.24,0.00024362,2]
[383588048,1757011849918,-400.0,0.00024362,2]
[383588049,1757011849928,-400.0,0.00024362,2]
[383588050,1757011849938,-400.0,0.00024362,2]
[383588051,1757011849947,-400.0,0.00024362,2]
[383588052,1757011849958,-267.62,0.00024362,2]
[383588053,1757011849967,-400.0,0.00024362,2]
[383588054,1757011849977,-400.0,0.00024362,2]
[383588055,1757011849987,-400.0,0.00024362,2]
[383588056,1757011849996,-400.0,0.00024362,2]
[383588057,1757011850006,-400.0,0.00024362,2]
[383588058,1757011850016,-400.0,0.00024362,2]
[383588059,1757011850027,-155.4,0.00024362,2]
[383588060,1757011850037,-400.0,0.00024362,2]
[383588061,1757011850047,-400.0,0.00024362,2]
[383588062,1757011850056,-300.14,0.00024362,2]
[383588063,1757011850066,-203.94,0.00024362,2]
[383588064,1757011850078,-400.0,0.00024362,2]
[383588065,1757011850090,-400.0,0.00024362,2]
[383588066,1757011850100,-400.0,0.00024362,2]
[383588067,1757011850110,-400.0,0.00024362,2]
[383588068,1757011850120,-515.03,0.00024362,2]
[383588069,1757011850130,-168.22,0.00024362,2]
[383588070,1757011850141,-400.0,0.00024362,2]
[383588071,1757011850151,-400.0,0.00024362,2]
[383588072,1757011850161,-207.0,0.00024362,2]
[383588073,1757011850171,-400.0,0.00024362,2]
[383588074,1757011850181,-188.3,0.00024362,2]
[383588075,1757011850192,-400.0,0.00024362,2]
[383588076,1757011850203,-152.48,0.00024362,2]
[383588077,1757011850213,-400.0,0.00024362,2]
[383588078,1757011850223,-400.0,0.00024362,2]
[383588079,1757011850233,-400.0,0.00024362,2]
[383588080,1757011850243,-400.0,0.00024362,2]
[383588081,1757011850254,-404.16,0.00024362,2]
[383588082,1757011850263,-203.4,0.00024362,2]
[383588083,1757011850274,-400.0,0.00024362,2]
[383588084,1757011850285,-400.0,0.00024362,2]
[383588085,1757011850293,-400.0,0.00024362,2]
[383588086,1757011850303,-604.82,0.00024362,2]
[383588087,1757011850312,-400.0,0.00024362,2]
[383588088,1757011850322,-400.0,0.00024362,2]
[383588089,1757011850333,-400.0,0.00024362,2]
[383588090,1757011850342,-400.0,0.00024362,2]
[383588091,1757011850352,-210.41,0.00024362,2]
[383588092,1757011850361,-400.0,0.00024362,2]
[383588093,1757011850370,-400.0,0.00024362,2]
[383588094,1757011850378,-400.0,0.00024362,2]
[383588095,1757011850386,-400.0,0.00024362,2]
[383588096,1757011850395,-537.76,0.00024362,2]
[383588097,1757011850404,-400.0,0.00024362,2]
[383588098,1757011850414,-400.0,0.00024362,2]
[383588099,1757011850424,-539.53,0.00024362,2]
[383588100,1757011850433,-428.14,0.00024362,2]
[383588101,1757011850443,-400.0,0.00024362,2]
[383588102,1757011850453,-288.48,0.00024362,2]
[383588103,1757011850462,-385.06,0.00024362,2]
[383588104,1757011850472,-400.0,0.00024362,2]
[383588105,1757011850482,-400.0,0.00024362,2]
[383588106,1757011850492,-400.0,0.00024362,2]
[383588107,1757011850502,-400.0,0.00024362,2]
[383588108,1757011850512,-400.0,0.00024362,2]
[383588109,1757011850522,-400.0,0.00024362,2]
[383588110,1757011850532,-434.28,0.00024362,2]
[383588111,1757011850542,-388.78,0.00024362,2]
[383588112,1757011850552,-400.0,0.00024362,2]
[383588113,1757011850563,-400.0,0.00024362,2]
[383588114,1757011850573,-400.0,0.00024362,2]
[383588115,1757011850582,-268.55,0.00024362,2]
[383588116,1757011850592,-532.86,0.00024362,2]
[383588117,1757011850601,-400.0,0.00024362,2]
[383588118,1757011850610,-400.0,0.00024362,2]
[383588119,1757011850620,-193.34,0.00024362,2]
[383588120,1757011850630,-717.27,0.00024362,2]
[383588121,1757011850639,-336.34,0.00024362,2]
[383588122,1757011850649,-400.0,0.00024362,2]
[383588123,1757011850659,-400.0,0.00024362,2]
[383588124,1757011850668,-265.16,0.00024362,2]
[383588125,1757011850678,-339.3,0.00024362,2]
[383588126,1757011850688,-400.0,0.00024362,2]
[383588127,1757011850701,-400.0,0.00024362,2]
[383588128,1757011850711,-400.0,0.00024362,2]
[383588129,1757011850721,-400.0,0.00024362,2]
[383588130,1757011850731,-430.42,0.00024362,2]
[383588131,1757011850742,-400.0,0.00024362,2]
[383588132,1757011850752,-400.0,0.00024362,2]
[383588133,1757011850762,-306.92,0.00024362,2]
[383588134,1757011850772,-400.0,0.00024362,2]
[383588135,1757011850783,-160.44,0.00024362,2]
[383588136,1757011850792,-400.0,0.00024362,2]
[383588137,1757011850802,-337.09,0.00024362,2]
[383588138,1757011850811,-345.96,0.00024362,2]
[383588139,1757011850820,-400.0,0.00024362,2]
[383588140,1757011850831,-441.61,0.00024362,2]
[383588141,1757011850840,-358.64,0.00024362,2]
[383588142,1757011850850,-172.08,0.00024362,2]
[383588143,1757011850860,-309.61,0.00024362,2]
[383588144,1757011850869,-396.14,0.00024362,2]
[383588145,1757011850879,-400.0,0.00024362,2]
[383588146,1757011850888,-400.0,0.00024362,2]
[383588147,1757011850897,-400.0,0.00024362,2]
[383588148,1757011850907,-400.0,0.00024362,2]
[383588149,1757011850916,-388.72,0.00024362,2]
[383588150,1757011850926,-218.92,0.00024362,2]
[383588151,1757011850935,-464.7,0.00024362,2]
[383588152,1757011850945,-400.0,0.00024362,2]
[383588153,1757011850955,-271.7,0.00024362,2]
[383588154,1757011850965,-512.0,0.0002438,2]
[383588155,1757011850974,-727.11513381,0.00024514,2]
[383588156,1757011850984,-157.05221486,0.00024535,2]
[383588157,1757011850993,-165.32,0.00024543,2]
[383588158,1757011851003,-451.39,0.0002455,2]
[383588159,1757011851014,-153.4,0.0002455,2]
[383588160,1757011851023,-2217.55,0.0002459,2]
[383588161,1757011851033,-1000.0,0.00024616,2]
[383588162,1757011851043,-957.25492978,0.00024626,2]
[383588163,1757011851052,-400.0,0.00024635,2]
[383588164,1757011851062,-391.44,0.00024635,2]
[383588165,1757011851071,-401.63,0.00024635,2]
[383588166,1757011851080,-500.0,0.00024636,2]
[383588167,1757011851089,-500.0,0.00024636,2]
[383588168,1757011851098,-500.0,0.00024636,2]
[383588169,1757011851107,-400.0,0.00024636,2]
[383588170,1757011851116,-421.27,0.00024636,2]
[383588171,1757011851125,-400.0,0.00024636,2]
[383588172,1757011851134,-400.0,0.00024636,2]
[383588173,1757011851143,-400.0,0.00024636,2]
[383588174,1757011851151,-400.0,0.00024636,2]
[383588175,1757011851160,-400.0,0.00024636,2]
[383588176,1757011851169,-190.22,0.00024636,2]
[383588177,1757011851178,-485.61,0.00024636,2]
[383588178,1757011851188,-163.75,0.00024636,2]
[383588179,1757011851198,-533.91,0.00024636,2]
[383588180,1757011851207,-376.54,0.00024636,2]
[383588181,1757011851216,-424.78,0.00024636,2]
[383588182,1757011851226,-400.0,0.00024636,2]
[383588183,1757011851236,-400.0,0.00024636,2]
[383588184,1757011851245,-400.0,0.00024636,2]
[383588185,1757011851255,-400.0,0.00024636,2]
[383588186,1757011851264,-400.0,0.00024636,2]
[383588187,1757011851274,-400.0,0.00024636,2]
[383588188,1757011851283,-400.0,0.00024636,2]
[383588189,1757011851294,-465.52,0.00024636,2]
[383588190,1757011851349,-515.03,0.00024636,2]
[383588191,1757011851359,-400.0,0.00024636,2]
[383588192,1757011851368,-400.0,0.00024636,2]
[383588193,1757011851377,-400.0,0.00024636,2]
[383588194,1757011851388,-400.0,0.00024636,2]
[383588195,1757011851397,-400.0,0.00024636,2]
[383588196,1757011851406,-400.0,0.00024636,2]
[383588197,1757011851416,-400.0,0.00024636,2]
[383588198,1757011851426,-400.0,0.00024636,2]
[383588199,1757011851436,-415.53,0.00024636,2]
[383588200,1757011851445,-158.58,0.00024636,2]
[383588201,1757011851454,-174.33,0.00024636,2]
[383588202,1757011851463,-604.82,0.00024636,2]
[383588203,1757011851474,-473.53,0.00024636,2]
[383588204,1757011851486,-400.0,0.00024636,2]
[383588205,1757011851497,-485.0,0.00024636,2]
[383588206,1757011851506,-304.65,0.00024636,2]
[383588207,1757011851515,-400.0,0.00024636,2]
[383588208,1757011851524,-400.0,0.00024636,2]
[383588209,1757011851534,-400.0,0.00024636,2]
[383588210,1757011851543,-400.0,0.00024636,2]
[383588211,1757011851553,-400.0,0.00024636,2]
[383588212,1757011851563,-400.0,0.00024636,2]
[383588213,1757011851574,-539.53,0.00024636,2]
[383588214,1757011851585,-400.0,0.00024636,2]
[383588215,1757011851595,-337.66,0.00024636,2]
[383588216,1757011851606,-512.47,0.00024636,2]
[383588217,1757011851618,-400.0,0.00024636,2]
[383588218,1757011851627,-400.0,0.00024636,2]
[383588219,1757011851638,-400.0,0.00024636,2]
[383588220,1757011851649,-417.81,0.00024636,2]
[383588221,1757011851659,-400.0,0.00024636,2]
[383588222,1757011851668,-400.0,0.00024636,2]
[383588223,1757011851678,-400.0,0.00024636,2]
[383588224,1757011851688,-400.0,0.00024636,2]
[383588225,1757011851701,-717.27,0.00024636,2]
[383588226,1757011851712,-400.0,0.00024636,2]
[383588227,1757011851722,-400.0,0.00024636,2]
[383588228,1757011851731,-400.0,0.00024636,2]
[383588229,1757011851741,-365.79193757,0.00024636,2]
[383588230,1757011851750,-152.43,0.00024636,2]
[383588231,1757011851759,-400.0,0.00024636,2]
[383588232,1757011851771,-472.83,0.00024636,2]
[383588233,1757011851781,-233.7,0.00024636,2]
[383588234,1757011851791,-400.0,0.00024636,2]
[383588235,1757011851800,-400.0,0.00024636,2]
[383588236,1757011851811,-210.62,0.00024636,2]
[383588237,1757011851822,-400.0,0.00024636,2]
[383588238,1757011851832,-400.0,0.00024636,2]
[383588239,1757011851842,-178.31,0.00024636,2]
[383588240,1757011851852,-400.0,0.00024636,2]
[383588241,1757011851863,-400.0,0.00024636,2]
[383588242,1757011851874,-300.0,0.00024657,2]
[383588243,1757011851886,-300.0,0.00024657,2]
[383588244,1757011851897,-970.98274453,0.00024658,2]
[383588245,1757011851907,-424.29,0.00024658,2]
[383588246,1757011851917,-151.0,0.00024658,7]
[383588247,1757011851927,-500.0,0.00024658,2]
[383588248,1757011851937,-1300.0,0.000247,9]
[383588249,1757011851946,-813.876,0.00024724,7]
[383588250,1757011851956,-1425.0,0.0002473,2]
[383588251,1757011851965,-951.45278,0.0002474,2]
[383588252,1757011851974,-300.96,0.00024756,2]
[383588253,1757011851983,-150.0,0.00024769,2]
[383588254,1757011851992,-150.0,0.00024769,2]
[383588255,1757011852002,-500.0,0.00024769,2]
[383588256,1757011852011,-150.0,0.00024769,2]
[383588257,1757011852020,-500.0,0.00024769,2]
[383588258,1757011852030,-241.00549383,0.00024769,2]
[383588259,1757011852043,-302.27223719,0.00024773,2]
[383588260,1757011852053,-1000.0,0.0002479,2]
[383588261,1757011852063,-300.0,0.00024799,10]
[383588262,1757011852072,-500.0,0.00024799,2]
[383588263,1757011852081,-787.26,0.00024799,2]
[383588264,1757011852090,-500.0,0.00024799,2]
[383588265,1757011852099,-161.21645929,0.000248,2]
[383588266,1757011852109,-1900.0,0.000248,9]
[383588267,1757011852119,-540066.292606,0.000248,3]
[383588268,1757011852128,-212.59699798,0.000248,3]
[383588269,1757011852139,-514.64478986,0.000248,3]
[383588270,1757011852148,-727.11513381,0.0002481,2]
[383588271,1757011852157,-30003.6829226,0.00024858,3]
[383588272,1757011852167,-2453.32560711,0.00024859,2]
[383588273,1757011852176,-1425.0,0.0002486,2]
[383588274,1757011852185,-2000.0,0.00024868,2]
[383588275,1757011852195,-856.35677774,0.0002489,2]
[383588276,1757011852204,-1948.0,0.0002489,2]
[383588277,1757011852213,-30003.6829226,0.0002489,3]
[383588278,1757011852223,-300.0,0.00024899,10]
[383588279,1757011852232,-500.0,0.00024899,2]
[383588280,1757011852242,-500.0,0.00024899,2]
[383588281,1757011852252,-2600.0,0.000249,9]
[383588282,1757011852261,-240930.666088,0.000249,3]
[383588283,1757011852271,-157.05221486,0.000249,2]
[383588284,1757011852280,-9059.22817204,0.000249,2]
[383588285,1757011852290,-1601.47178811,0.000249,2]
[383588286,1757011852299,-400.0,0.00024909,2]
[383588287,1757011852309,-500.0,0.00024909,2]
[383588288,1757011852318,-401.63,0.00024909,2]
[383588289,1757011852327,-273.64338335,0.0002491,2]
[383588290,1757011852337,-150.0,0.0002491,2]
[383588291,1757011852347,-571.98262566,0.0002491,2]
[383588292,1757011852356,-500.0,0.0002491,2]
[383588293,1757011852366,-400.0,0.0002491,2]
[383588294,1757011852375,-400.0,0.0002491,2]
[383588295,1757011852385,-325.85,0.0002491,2]
[383588296,1757011852395,-400.0,0.0002491,2]
[383588297,1757011852405,-400.0,0.0002491,2]
[383588298,1757011852414,-400.0,0.0002491,2]
[383588299,1757011852424,-400.0,0.0002491,2]
[383588300,1757011852434,-400.0,0.0002491,2]
[383588301,1757011852444,-191.51,0.0002491,2]
[383588302,1757011852453,-400.0,0.0002491,2]
[383588303,1757011852463,-400.0,0.0002491,2]
[383588304,1757011852473,-400.0,0.0002491,2]
[383588305,1757011852482,-378.89,0.0002491,2]
[383588306,1757011852493,-515.03,0.0002491,2]
[383588307,1757011852503,-400.0,0.0002491,2]
[383588308,1757011852513,-482.01,0.0002491,2]
[383588309,1757011852522,-400.0,0.0002491,2]
[383588310,1757011852532,-400.0,0.0002491,2]
[383588311,1757011852542,-400.0,0.0002491,2]
[383588312,1757011852552,-400.0,0.0002491,2]
[383588313,1757011852561,-400.0,0.0002491,2]
[383588314,1757011852571,-604.82,0.0002491,2]
[383588315,1757011852582,-400.0,0.0002491,2]
[383588316,1757011852591,-400.0,0.0002491,2]
[383588317,1757011852601,-443.29,0.0002491,2]
[383588318,1757011852610,-400.0,0.0002491,2]
[383588319,1757011852620,-400.0,0.0002491,2]
[383588320,1757011852630,-400.0,0.0002491,2]
[383588321,1757011852640,-400.0,0.0002491,2]
[383588322,1757011852650,-539.53,0.0002491,2]
[383588323,1757011852660,-400.0,0.0002491,2]
[383588324,1757011852669,-434.98,0.0002491,2]
[383588325,1757011852678,-400.0,0.0002491,2]
[383588326,1757011852688,-400.0,0.0002491,2]
[383588327,1757011852702,-400.0,0.0002491,2]
[383588328,1757011852712,-400.0,0.0002491,2]
[383588329,1757011852721,-286.88,0.0002491,2]
[383588330,1757011852730,-717.27,0.0002491,2]
[383588331,1757011852740,-400.0,0.0002491,2]
[383588332,1757011852750,-400.0,0.0002491,2]
[383588333,1757011852760,-400.0,0.0002491,2]
[383588334,1757011852770,-400.0,0.0002491,2]
[383588335,1757011852780,-400.0,0.0002491,2]
[383588336,1757011852789,-400.0,0.0002491,2]
[383588337,1757011852799,-400.0,0.0002491,2]
[383588338,1757011852808,-400.0,0.0002491,2]
[383588339,1757011852818,-400.0,0.0002491,2]
[383588340,1757011852827,-400.0,0.0002491,2]
[383588341,1757011852836,-500.0,0.00024932,2]
[383588342,1757011852846,-500.0,0.00024958,2]
[383588343,1757011852855,-117747.88478181,0.00024958,2]
[383588344,1757011852864,-150.0,0.00024959,4]
[383588345,1757011852873,-1222.0,0.00024959,2]